bitfinex-derivatives/quotes_ETHF0:USTF0_20260201
["timestamp","ask_amount","ask_price","bid_price","bid_amount"]
[1769942097691,3.77389023,2409.1,2407.5,2.01199846]
[1769942098188,3.77389023,2409.1,2407.6,2.01199846]
[1769942098189,3.77745775,2409.1,2407.6,2.01199846]
[1769942098389,3.98521775,2409.1,2407.6,2.01199846]
[1769942098590,3.77745775,2409.1,2407.5,0.0043746]
[1769942098888,3.77745775,2409.1,2407.7,2.01199846]
[1769942099290,3.77745775,2409.1,2407.8,2.01199846]
[1769942099587,3.77745775,2409.1,2407.8,0.61781068]
[1769942099787,3.77745775,2409.1,2407.9,2.01199846]
[1769942100088,3.77745775,2409.1,2407.8,0.61781068]
[1769942100289,3.77745775,2409.1,2408.1,2.01199846]
[1769942100793,3.77389023,2408.9,2407.8,0.61781068]
[1769942101189,0.00356752,2409.1,2407.8,4.54912286]
[1769942101494,3.75945775,2409.8,2407.8,4.54912286]
[1769942101788,2.33088842,2410.4,2408.0,3.93131218]
[1769942101988,2.33088842,2410.6,2408.0,3.93131218]
[1769942102384,0.20763,2410.7,2408.0,3.93131218]
[1769942102584,2.33088842,2410.4,2408.0,3.93131218]
[1769942102786,0.20771,2409.7,2408.0,3.93131218]
[1769942103488,3.77389023,2409.6,2407.8,0.61781068]
[1769942103687,3.77389023,2408.8,2407.5,0.0043746]
[1769942104390,3.77389023,2408.8,2407.5,3.93568678]
[1769942104587,3.77389023,2409.2,2407.5,3.93568678]
[1769942105093,3.77389023,2409.2,2407.5,4.55349746]
[1769942105293,8.17058071,2409.1,2407.5,4.55349746]
[1769942105495,3.77389023,2409.1,2407.5,4.55349746]
[1769942105697,3.77389023,2409.1,2407.6,4.54912286]
[1769942105893,3.77389023,2409.5,2408.0,3.93131218]
[1769942106097,3.77389023,2409.5,2408.0,0.63172304]
[1769942106098,3.77389023,2409.3,2408.0,0.63172304]
[1769942106496,3.77389023,2409.1,2408.0,0.63172304]
[1769942106693,3.77389023,2409.1,2407.5,0.0043746]
[1769942106694,3.77389023,2408.9,2407.5,0.0043746]
[1769942106896,3.77389023,2408.7,2407.5,0.0043746]
[1769942108204,4.40984908,2408.6,2407.5,0.0043746]
[1769942108400,3.77389023,2408.7,2407.5,0.62218528]
[1769942108900,3.77389023,2408.7,2407.6,0.61781068]
[1769942109301,4.42581399,2408.6,2407.6,0.61781068]
[1769942109502,8.2107872,2408.5,2407.5,0.0043746]
[1769942109798,4.42581399,2408.4,2407.5,0.0043746]
[1769942109992,4.42581399,2408.4,2407.5,0.62218528]
[1769942110193,2.33088842,2408.4,2407.6,0.61781068]
[1769942110398,6.75670241,2408.4,2407.6,0.61781068]
[1769942111101,3.11675307,2407.4,2405.6,3.69053894]
[1769942111300,2.42126753,2406.7,2405.6,3.69053894]
[1769942111501,4.42581399,2406.6,2405.6,3.69053894]
[1769942112100,9.96767111,2406.5,2405.6,0.00404719]
[1769942112305,9.96767111,2406.5,2405.0,3.69053894]
[1769942112306,6.84708152,2406.4,2405.0,3.69053894]
[1769942112498,4.84690967,2406.6,2405.0,3.69053894]
[1769942112499,4.36216183,2406.3,2405.0,3.69053894]
[1769942112801,4.36191017,2406.2,2405.0,3.69053894]
[1769942113099,2.42126753,2406.4,2405.0,3.69053894]
[1769942113300,6.79554556,2406.3,2405.0,3.69433531]
[1769942113501,4.37427803,2406.2,2405.0,3.69433531]
[1769942113695,2.42564213,2406.6,2405.0,3.69433531]
[1769942113899,0.0043746,2406.6,2405.0,3.69433531]
[1769942114095,2.42126753,2407.0,2405.0,3.69433531]
[1769942114303,4.32687413,2407.0,2405.0,3.69433531]
[1769942114500,6.74814166,2406.9,2405.0,3.69433531]
[1769942114807,4.32687413,2406.8,2405.0,3.69433531]
[1769942115005,4.32687413,2406.7,2405.0,3.69433531]
[1769942115296,2.42439028,2406.9,2405.0,3.69433531]
[1769942115804,6.74650122,2406.8,2405.0,3.69433531]
[1769942115995,4.32523369,2406.7,2405.0,3.69433531]
[1769942116197,4.32523369,2406.6,2405.0,3.69433531]
[1769942116394,4.32523369,2406.5,2405.0,3.69433531]
[1769942116594,2.42126753,2406.8,2405.0,3.69433531]
[1769942116796,4.32502161,2406.7,2405.0,3.69433531]
[1769942117003,4.32502161,2406.6,2405.0,3.69433531]
[1769942117205,4.32502161,2406.5,2405.0,3.69433531]
[1769942117502,2.42126753,2406.7,2405.0,3.69433531]
[1769942117704,2.42126753,2406.5,2405.0,3.69433531]
[1769942117905,4.31000361,2406.4,2405.0,3.69433531]
[1769942118100,4.31000361,2406.3,2405.0,3.69433531]
[1769942118301,4.31000361,2406.2,2405.0,3.69433531]
[1769942118603,7.39212286,2406.1,2405.0,0.00379637]
[1769942118797,6.73027638,2406.0,2405.0,3.69433531]
[1769942119001,4.30900885,2405.9,2405.0,4.31992641]
[1769942119202,2.42126753,2406.2,2405.0,4.31992641]
[1769942119397,3.01208092,2406.1,2405.0,0.62938747]
[1769942119704,4.30738386,2406.0,2405.0,4.31992641]
[1769942119905,4.30738386,2405.9,2405.0,4.31992641]
[1769942120107,4.30738386,2405.8,2405.0,4.31992641]
[1769942120304,2.42126753,2406.1,2405.0,4.31992641]
[1769942120501,9.73792049,2406.0,2405.0,0.62938747]
[1769942120699,4.30457204,2405.9,2405.0,0.62938747]
[1769942120906,4.30457204,2405.8,2405.0,0.62938747]
[1769942121101,7.31665296,2405.7,2403.4,3.69053894]
[1769942121401,6.72583957,2405.6,2403.4,3.69053894]
[1769942121607,4.30457204,2405.5,2404.5,0.88996057]
[1769942121804,4.30457204,2405.4,2404.5,1.50737175]
[1769942122003,4.30457204,2405.3,2404.5,1.50737175]
[1769942122204,4.30457204,2405.2,2404.5,1.51111682]
[1769942122403,0.0039963,2405.2,2404.5,1.51111682]
[1769942122603,2.36800647,2405.2,2404.5,0.62115625]
[1769942122907,0.0039963,2405.2,2404.5,0.62115625]
[1769942123607,4.29312776,2405.1,2404.5,0.49963333]
[1769942123808,0.0039963,2405.2,2404.5,0.49963333]
[1769942124006,4.29309171,2405.1,2404.5,0.49963333]
[1769942124206,0.0039963,2405.2,2404.5,0.49963333]
[1769942124406,4.29610621,2405.1,2404.5,0.49963333]
[1769942124607,4.84253507,2405.5,2404.5,0.49963333]
[1769942124608,1.34054744,2405.5,2404.5,4.19017227]
[1769942124804,36.31901309,2406.4,2404.5,4.19017227]
[1769942125002,4.29815741,2406.3,2404.5,4.19017227]
[1769942125212,36.31901309,2406.7,2404.6,3.69053894]
[1769942125413,1.45917194,2406.5,2404.6,3.69053894]
[1769942125604,1.4402985,2406.3,2404.6,3.69053894]
[1769942125810,1.4402985,2406.1,2404.6,3.69053894]
[1769942126010,4.28254222,2406.0,2404.6,3.69053894]
[1769942126213,36.31901309,2406.3,2404.6,3.69053894]
[1769942126409,4.28193358,2406.2,2404.6,3.69053894]
[1769942126610,1.4402985,2406.0,2404.6,3.69053894]
[1769942126911,4.28193358,2405.9,2404.6,3.69053894]
[1769942127110,4.28193358,2405.8,2404.6,3.69053894]
[1769942127410,1.4402985,2406.0,2404.5,0.49963333]
[1769942127611,1.38356222,2405.8,2404.5,0.49963333]
[1769942127811,4.28112317,2405.7,2404.5,0.49963333]
[1769942128010,1.09202889,2405.2,2403.8,3.69053894]
[1769942128208,5.13092889,2405.1,2403.8,3.69053894]
[1769942128510,0.88392889,2404.9,2403.4,0.62614384]
[1769942128815,37.20294198,2404.7,2403.4,0.62614384]
[1769942129004,5.16505206,2404.6,2403.4,0.62947954]
[1769942129202,5.16505206,2404.5,2403.4,0.62947954]
[1769942129406,4.28112317,2404.4,2403.4,0.62947954]
[1769942129602,0.00486496,2404.7,2403.4,4.32001848]
[1769942131009,0.86976633,2405.5,2403.5,3.69053894]
[1769942131206,4.27265778,2405.4,2403.5,3.69053894]
[1769942131410,0.86976633,2405.9,2403.5,3.69053894]
[1769942131604,4.19973662,2405.8,2403.5,3.69053894]
[1769942131804,0.90160089,2406.1,2403.5,3.69053894]
[1769942132009,0.90160089,2406.0,2403.5,3.69053894]
[1769942132205,37.22061398,2405.8,2403.5,3.69053894]
[1769942132410,4.20011437,2405.7,2403.5,3.69053894]
[1769942132809,5.10171526,2405.7,2403.5,3.69053894]
[1769942133007,36.31901309,2405.2,2402.5,4.09039579]
[1769942133220,0.20824,2403.5,2402.1,4.09039579]
[1769942133513,0.0238814,2403.5,2402.1,4.70686853]
[1769942133717,0.0238814,2403.9,2402.1,4.70686853]
[1769942133923,0.20819,2404.2,2402.1,4.70686853]
[1769942134122,4.265,2404.3,2402.1,4.70686853]
[1769942134622,0.20821,2404.0,2402.1,4.70686853]
[1769942134820,3.93599287,2403.9,2402.1,4.71227203]
[1769942135017,0.00311291,2404.0,2402.1,4.71227203]
[1769942135917,0.00311291,2404.0,2402.2,4.09039579]
[1769942136617,36.31901309,2405.2,2402.5,4.09039579]
[1769942136824,36.52704309,2406.0,2403.1,4.09039579]
[1769942137116,36.52704309,2406.0,2403.3,4.09039579]
[1769942137117,3.94247014,2405.9,2403.3,4.09039579]
[1769942137321,3.94247014,2405.8,2403.3,4.09039579]
[1769942137512,3.94247014,2405.7,2403.3,4.09039579]
[1769942137713,36.32196325,2405.7,2403.3,4.09039579]
[1769942138021,0.00295016,2405.7,2403.3,4.09039579]
[1769942138315,0.00295016,2405.7,2404.0,3.32342283]
[1769942138527,36.31901309,2406.9,2404.4,4.09437304]
[1769942138720,3.95224927,2406.8,2404.6,4.09437304]
[1769942139021,36.31901309,2406.7,2404.6,4.70730484]
[1769942139217,40.27126236,2406.6,2404.6,4.70730484]
[1769942139422,3.95224927,2406.5,2404.6,4.70730484]
[1769942139616,3.95224927,2406.4,2404.6,4.70730484]
[1769942139914,3.95224927,2406.3,2404.6,4.70730484]
[1769942140120,36.31901309,2406.2,2404.6,4.70730484]
[1769942140314,36.31901309,2406.0,2404.6,4.70730484]
[1769942140514,3.95654147,2405.9,2404.6,4.70730484]
[1769942140715,3.95654147,2405.8,2404.6,4.70730484]
[1769942141018,36.31901309,2406.2,2404.6,4.70730484]
[1769942141218,36.31901309,2406.0,2404.6,4.70730484]
[1769942141515,36.31901309,2406.2,2404.6,4.70730484]
[1769942141714,4.84253507,2406.3,2404.6,4.70730484]
[1769942141715,3.97282441,2406.1,2404.6,4.70730484]
[1769942141921,3.97282441,2406.0,2404.6,4.70730484]
[1769942142116,36.31901309,2406.3,2404.6,4.70730484]
[1769942142917,40.29190936,2406.3,2404.6,4.70730484]
[1769942143118,36.31901309,2406.1,2404.6,4.70730484]
[1769942143922,36.31901309,2405.9,2404.6,4.70730484]
[1769942144520,40.29190936,2405.9,2404.6,4.70730484]
[1769942145520,3.97289627,2405.8,2404.6,4.70730484]
[1769942145720,3.97289627,2405.7,2404.6,4.70730484]
[1769942145912,36.31901309,2406.2,2404.6,4.70730484]
[1769942146111,40.30091382,2406.2,2404.6,4.70730484]
[1769942146314,3.98190073,2406.1,2404.6,4.70730484]
[1769942146715,44.60191382,2406.0,2404.6,4.70730484]
[1769942146920,40.30091382,2405.9,2404.6,4.70730484]
[1769942147222,3.98190073,2405.8,2404.6,4.70730484]
[1769942147519,3.98190073,2405.7,2404.6,0.6129318]
[1769942147724,36.31901309,2405.2,2404.0,4.70908062]
[1769942148017,3.98190073,2405.1,2404.0,4.70908062]
[1769942148218,3.98190073,2405.0,2404.0,4.70908062]
[1769942148523,3.98190073,2404.9,2404.0,4.70908062]
[1769942148723,36.31901309,2405.1,2404.0,4.70908062]
[1769942148724,3.98190073,2404.8,2404.0,4.70908062]
[1769942148934,3.53161283,2404.1,2402.5,4.09306032]
[1769942149223,36.49552147,2403.8,2402.5,4.09306032]
[1769942149428,3.97264721,2403.7,2402.5,4.09306032]
[1769942149717,40.46816868,2403.6,2402.1,4.70953306]
[1769942149925,40.46438457,2403.5,2402.1,4.71319173]
[1769942150117,36.49552147,2403.3,2402.1,4.71319173]
[1769942150317,3.9688631,2403.2,2402.1,4.71319173]
[1769942150521,36.49552147,2403.8,2402.2,4.09306032]
[1769942150823,40.3370797,2403.7,2402.1,4.71319173]
[1769942151021,40.3370797,2403.6,2402.1,0.62013141]
[1769942151220,36.49552147,2403.2,2402.1,0.62013141]
[1769942151526,36.49552147,2403.0,2402.1,0.61718125]
[1769942151824,3.84155823,2402.9,2402.1,0.61718125]
[1769942152025,3.84155823,2402.8,2402.1,0.61718125]
[1769942152220,36.49860997,2403.0,2402.1,0.61718125]
[1769942152221,0.0030885,2403.0,2402.1,0.61718125]
[1769942152422,3.83490114,2402.9,2402.1,0.61718125]
[1769942152623,0.0030885,2403.0,2402.1,0.61718125]
[1769942152829,0.0030885,2403.0,2402.2,4.09306032]
[1769942153127,40.83852147,2403.8,2402.6,4.70798333]
[1769942153328,3.83500609,2403.7,2402.6,4.09306032]
[1769942153527,3.83500609,2403.6,2402.6,4.09306032]
[1769942153730,3.75669713,2403.5,2402.2,4.09306032]
[1769942154024,3.75685008,2403.4,2402.1,0.61718125]
[1769942154219,36.49552147,2403.7,2402.1,0.61718125]
[1769942154420,40.24999794,2403.6,2402.1,0.61718125]
[1769942154623,3.75447647,2403.5,2402.1,0.00365867]
[1769942154830,36.70382147,2402.9,2401.3,4.09306032]
[1769942155023,36.70382147,2402.9,2401.3,4.71795108]
[1769942155024,8.10547647,2402.8,2401.3,4.71795108]
[1769942155224,3.75447647,2402.7,2401.3,0.62489076]
[1769942155526,3.75447647,2402.7,2400.6,4.09306032]
[1769942155527,36.49552147,2402.1,2400.6,4.09306032]
[1769942155722,39.8189443,2401.7,2400.6,0.00211758]
[1769942155932,36.49552147,2401.4,2399.7,4.09306032]
[1769942156126,0.20845,2401.2,2399.7,4.09306032]
[1769942156526,3.95512575,2401.1,2399.7,4.09306032]
[1769942156721,36.49552147,2401.5,2399.9,4.09306032]
[1769942157027,3.74719888,2401.4,2399.9,0.62658972]
[1769942157225,0.00367819,2401.5,2399.9,4.71965004]
[1769942157425,0.00367819,2401.5,2400.2,4.09306032]
[1769942157622,0.00367819,2401.5,2400.3,5.33287409]
[1769942157826,0.00367819,2401.5,2400.4,4.09306032]
[1769942158127,0.00367819,2401.5,2400.5,1.23981377]
[1769942158328,0.00367819,2401.5,2400.6,1.23981377]
[1769942158633,0.00367819,2401.5,2400.5,5.33287409]
[1769942158929,4.374,2401.9,2400.7,5.33287409]
[1769942159126,4.372,2402.0,2400.7,4.09306032]
[1769942159527,4.372,2402.0,2400.8,4.09306032]
[1769942159722,3.53176283,2402.4,2400.8,4.09306032]
[1769942159926,0.00292841,2402.4,2400.8,4.09306032]
[1769942160120,0.00292841,2402.4,2401.3,4.09306032]
[1769942160324,0.00292841,2402.4,2401.3,4.72019178]
[1769942160723,0.00292841,2402.4,2401.4,5.33287409]
[1769942160921,0.00292841,2402.4,2401.4,4.09306032]
[1769942161123,7.68742283,2403.4,2402.0,1.23981377]
[1769942161331,7.89567283,2403.4,2401.8,4.09306032]
[1769942161632,8.16453148,2404.0,2401.3,0.62713146]
[1769942161633,0.2082,2404.0,2402.3,4.09306032]
[1769942161833,3.6709359,2403.9,2402.3,4.09306032]
[1769942162027,0.00225815,2403.9,2402.3,4.09669755]
[1769942162227,0.00225815,2403.9,2402.4,4.09306032]
[1769942162433,0.00225815,2403.9,2402.5,4.09306032]
[1769942162635,0.00225815,2403.9,2402.7,4.09306032]
[1769942162837,0.00225815,2403.9,2402.7,4.72891638]
[1769942163328,42.1090643,2404.9,2403.2,5.33287409]
[1769942163532,4.364,2404.8,2402.8,4.09306032]
[1769942163733,3.32342283,2404.4,2402.8,4.09306032]
[1769942163936,0.2082,2404.1,2402.7,0.63585606]
[1769942164128,0.2082,2404.1,2402.7,4.72891638]
[1769942164331,3.32342283,2404.4,2402.7,4.72891638]
[1769942164532,4.361,2404.3,2402.7,4.72891638]
[1769942164728,0.20819,2404.1,2402.7,4.72891638]
[1769942165532,0.20823,2403.7,2402.7,0.63585606]
[1769942165735,3.32342283,2403.9,2402.7,0.63585606]
[1769942168042,0.21181107,2402.8,2401.5,4.09764118]
[1769942170242,0.20825,2403.4,2402.0,1.87363099]
[1769942170543,4.343,2403.8,2402.3,4.09549094]
[1769942170843,0.20823,2403.7,2402.4,4.09549094]
[1769942171043,0.20824,2403.6,2402.4,4.09549094]
[1769942171444,0.20824,2403.6,2402.4,5.96912193]
[1769942172043,36.49552147,2404.2,2402.5,4.09549094]
[1769942172242,6.424,2404.1,2402.5,4.09549094]
[1769942172443,0.2082,2404.0,2402.5,4.09549094]
[1769942172643,42.91952147,2404.1,2402.5,4.09549094]
[1769942172843,47.05452147,2404.1,2402.5,4.09549094]
[1769942173447,40.63052147,2404.0,2402.5,4.09549094]
[1769942173641,36.49552147,2404.0,2402.5,4.09549094]
[1769942173841,36.49552147,2404.2,2402.6,4.09549094]
[1769942174042,0.20818,2404.2,2402.6,4.09549094]
[1769942174244,0.20818,2404.2,2402.7,4.09549094]
[1769942174245,0.2082,2404.0,2402.7,4.09549094]
[1769942174641,0.2082,2404.0,2402.8,1.87363099]
[1769942174837,3.32342283,2403.4,2402.1,4.09549094]
[1769942175038,0.20831,2402.7,2402.0,0.20281265]
[1769942175346,0.20834,2402.5,2401.5,0.00458086]
[1769942175544,0.20834,2402.5,2401.8,1.87363099]
[1769942176046,4.362,2402.6,2401.5,8.6e-07]
[1769942176340,36.49552147,2403.3,2401.5,4.0954918]
[1769942176545,36.49552147,2403.5,2401.5,4.0954918]
[1769942176845,0.20825,2403.4,2401.5,4.0954918]
[1769942177244,0.21118645,2403.4,2401.5,4.0954918]
[1769942177445,36.49552147,2403.0,2401.5,4.0954918]
[1769942177743,36.49552147,2403.1,2401.5,4.0954918]
[1769942177945,0.00293645,2403.4,2401.5,4.0954918]
[1769942178345,36.49552147,2403.1,2401.5,4.0954918]
[1769942178545,40.85852147,2403.1,2401.5,4.0954918]
[1769942179158,36.70382147,2402.9,2401.5,4.0954918]
[1769942179358,36.70382147,2402.8,2401.5,4.0954918]
[1769942180052,3.32342283,2402.3,2400.8,4.09549094]
[1769942180256,3.32342283,2402.2,2400.4,0.10996091]
[1769942180554,36.4286044,2400.7,2399.9,0.17462776]
[1769942180753,36.4286044,2401.1,2399.9,0.17462776]
[1769942181053,3.73483671,2401.1,2399.9,0.17974041]
[1769942181255,0.00339412,2401.1,2399.9,0.17974041]
[1769942181851,3.63594435,2401.1,2399.9,0.17974041]
[1769942182049,3.63255023,2400.9,2399.9,0.17974041]
[1769942182454,5.06563969,2401.0,2399.1,3.94888142]
[1769942182455,3.84103982,2400.7,2399.1,3.94888142]
[1769942182656,8.48972951,2400.5,2399.1,0.0008]
[1769942182857,3.63254982,2400.3,2399.1,3.94888142]
[1769942183052,3.63254982,2400.3,2399.1,0.0008]
[1769942183457,3.84109982,2400.0,2399.1,2.56e-06]
[1769942183658,3.42423341,2399.4,2397.2,3.94808142]
[1769942183862,3.63284341,2399.3,2397.2,3.94808142]
[1769942184155,3.42423341,2399.1,2396.8,3.94808142]
[1769942184363,3.42423341,2398.8,2396.8,3.94808142]
[1769942184566,0.00526214,2398.8,2396.8,3.9511106]
[1769942185161,0.00526214,2398.8,2396.9,2.083]
[1769942185461,0.00526214,2398.8,2397.2,3.94808142]
[1769942185660,2.444,2400.1,2397.2,3.94808142]
[1769942185661,3.10032543,2400.5,2397.7,3.94808142]
[1769942185859,3.30883543,2400.5,2397.7,4.56701147]
[1769942186060,3.10032543,2400.2,2397.7,4.56701147]
[1769942186657,3.30895543,2399.0,2396.9,0.61893005]
[1769942186858,3.93400049,2398.8,2396.9,0.61893005]
[1769942187058,3.93400049,2398.3,2396.9,0.61893005]
[1769942187259,3.93400049,2398.0,2396.9,0.61893005]
[1769942187456,0.00373751,2398.3,2396.9,0.61893005]
[1769942188662,0.00373751,2398.3,2397.0,3.94808142]
[1769942189064,3.937738,2398.3,2397.0,3.94808142]
[1769942189267,3.937738,2398.3,2396.9,0.61893005]
[1769942190166,0.00373751,2398.3,2396.9,4.56701147]
[1769942190358,3.93400049,2399.1,2396.9,4.56701147]
[1769942190561,3.93400049,2399.6,2396.9,4.56701147]
[1769942190757,3.93400049,2400.0,2397.2,3.94808142]
[1769942190963,3.93400049,2400.0,2397.0,4.529]
[1769942190964,3.93400049,2400.4,2397.7,3.94808142]
[1769942191263,2.084,2401.0,2398.3,3.94808142]
[1769942191562,2.084,2401.0,2398.5,3.94808142]
[1769942191563,3.93400049,2400.9,2398.5,3.94808142]
[1769942191759,3.93400049,2400.9,2398.5,3.9526922]
[1769942192763,0.00319587,2401.0,2398.6,3.94808142]
[1769942193063,3.93719636,2401.0,2398.6,3.94808142]
[1769942193461,3.93400049,2400.8,2398.6,3.94808142]
[1769942193665,3.93400049,2400.6,2398.6,3.94808142]
[1769942194066,3.93719636,2401.0,2398.6,3.94808142]
[1769942194464,0.00319587,2401.0,2398.6,3.94808142]
[1769942195365,3.93719636,2401.0,2398.6,3.94808142]
[1769942196769,3.93400049,2400.6,2398.6,3.94808142]
[1769942196962,3.93400049,2400.4,2398.6,3.94808142]
[1769942197666,2.08819587,2401.0,2398.5,0.00461078]
[1769942197667,3.72300158,2399.9,2398.5,0.00461078]
[1769942197864,3.72300158,2399.9,2398.5,3.7043752]
[1769942198366,3.72300158,2400.4,2398.5,5.7883752]
[1769942198667,3.72300158,2400.4,2398.6,3.69976442]
[1769942199061,2.410071,2400.7,2398.5,0.00461078]
[1769942199062,3.93155158,2400.0,2398.5,0.00461078]
[1769942199671,3.72300158,2399.8,2398.5,0.00461078]
[1769942199870,3.93157158,2399.8,2398.5,0.00461078]
[1769942200960,3.72300158,2399.8,2398.5,0.00461078]
[1769942201160,3.72300158,2400.8,2398.7,3.69976442]
[1769942202275,3.72300158,2400.6,2398.7,3.69976442]
[1769942202667,3.72300158,2400.3,2398.7,3.69976442]
[1769942202867,3.93152158,2400.3,2398.7,3.69976442]
[1769942203066,3.72300158,2399.8,2398.5,0.00461078]
[1769942203472,3.72300158,2399.4,2398.5,0.00461078]
[1769942204067,3.99435308,2399.9,2398.5,3.86555551]
[1769942205775,4.20291308,2399.9,2398.5,0.00461078]
[1769942206076,3.99435308,2400.4,2398.5,3.86555551]
[1769942206970,3.99435308,2400.9,2398.5,3.86555551]
[1769942207172,3.99435308,2400.4,2398.5,3.86555551]
[1769942207372,3.99435308,2400.2,2398.5,3.86555551]
[1769942207571,4.20290308,2400.0,2398.5,0.00461078]
[1769942207970,3.99435308,2400.0,2398.5,3.86555551]
[1769942208671,2.41839442,2400.4,2398.5,3.86555551]
[1769942208874,3.99435308,2400.6,2398.5,3.86555551]
[1769942209872,3.99754895,2401.0,2398.5,3.86555551]
[1769942210573,0.00319587,2401.0,2399.0,3.86094473]
[1769942210771,0.00319587,2401.0,2399.2,7.56549973]
[1769942210976,0.00319587,2401.0,2399.3,3.86094473]
[1769942211672,3.99435308,2400.9,2399.3,3.86094473]
[1769942211878,6.40442408,2400.5,2399.1,5.94594473]
[1769942212070,3.99435308,2400.5,2399.2,3.86094473]
[1769942212670,3.99754895,2401.0,2399.2,3.86094473]
[1769942213269,3.99435308,2400.8,2399.2,3.86094473]
[1769942213676,3.99435308,2400.7,2399.2,3.86094473]
[1769942213873,3.99435308,2400.4,2399.1,2.085]
[1769942214377,3.99435308,2400.4,2399.1,5.94594473]
[1769942214678,2.410071,2400.3,2399.1,5.94594473]
[1769942214975,3.99435308,2400.3,2399.1,2.085]
[1769942215274,2.410071,2399.8,2399.0,0.61846579]
[1769942215471,2.410071,2399.9,2399.0,0.61846579]
[1769942215668,2.410071,2399.7,2399.0,0.61846579]
[1769942215873,2.410071,2399.6,2399.0,0.61846579]
[1769942216073,6.40442408,2399.9,2399.0,0.61846579]
[1769942216572,6.40442408,2399.9,2398.5,0.00461078]
[1769942216573,3.99435308,2399.8,2398.5,0.00461078]
[1769942216877,3.99435308,2399.2,2397.4,3.86094473]
[1769942217071,4.20297308,2399.2,2397.4,3.86094473]
[1769942217373,6.3998133,2398.8,2397.4,3.86094473]
[1769942217571,3.99435308,2398.7,2397.4,3.86094473]
[1769942217776,2.40546022,2398.6,2397.7,0.62267628]
[1769942218076,3.99435308,2398.1,2397.0,3.86094473]
[1769942218279,3.99435308,2398.6,2397.0,3.86094473]
[1769942218469,3.99435308,2398.6,2396.9,0.61893005]
[1769942218470,3.99435308,2398.1,2396.9,0.61893005]
[1769942218872,40.36015962,2398.5,2396.9,4.47987478]
[1769942219069,3.99435308,2398.5,2396.9,4.48403469]
[1769942219470,3.99435308,2398.4,2396.9,4.48403469]
[1769942219674,3.99435308,2398.2,2396.9,4.48403469]
[1769942219879,40.56882962,2398.6,2396.9,4.48403469]
[1769942220077,3.99435308,2398.4,2396.9,3.86510464]
[1769942220376,0.0052311,2398.7,2396.9,3.86510464]
[1769942221173,3.99435308,2398.2,2396.9,0.00415991]
[1769942221376,3.99435308,2398.2,2396.9,3.86510464]
[1769942221581,3.99435308,2398.6,2396.9,3.86510464]
[1769942221884,40.36015962,2398.6,2396.9,3.86510464]
[1769942222285,3.99435308,2398.6,2396.9,3.86510464]
[1769942222579,36.37103764,2398.7,2396.9,3.86510464]
[1769942222580,0.0052311,2398.7,2396.9,3.86510464]
[1769942222884,6.07427614,2399.5,2396.9,3.86510464]
[1769942222885,36.36580654,2400.1,2397.6,3.86094473]
[1769942223085,36.36580654,2400.1,2397.4,4.94887289]
[1769942223086,3.99435308,2399.9,2397.8,3.86094473]
[1769942223287,4.20292308,2399.7,2397.8,3.86094473]
[1769942223580,3.99435308,2399.4,2397.8,3.86094473]
[1769942223783,6.3998133,2399.2,2397.8,3.86094473]
[1769942223983,0.00422831,2399.4,2397.8,3.86094473]
[1769942225576,6.05913126,2400.3,2397.8,3.86094473]
[1769942225577,40.34863333,2400.4,2398.0,3.86094473]
[1769942225782,3.99435308,2400.2,2398.0,3.86094473]
[1769942226583,3.99435308,2400.2,2398.2,3.86094473]
[1769942226584,3.99888369,2400.2,2398.2,3.86094473]
[1769942226783,3.99888369,2400.2,2398.4,3.86094473]
[1769942226985,4.20292308,2399.8,2398.3,2.085]
[1769942227185,2.40546022,2399.3,2398.3,2.085]
[1769942227386,2.40546022,2399.3,2397.2,4.539]
[1769942227387,3.91873373,2398.8,2397.6,3.93596742]
[1769942227785,2.40546022,2398.5,2397.6,3.93596742]
[1769942227985,2.40859101,2398.5,2397.6,3.93596742]
[1769942228182,0.00313079,2398.5,2397.6,3.93596742]
[1769942228989,3.91873373,2399.6,2397.6,3.93596742]
[1769942229892,3.92013355,2399.6,2397.6,3.93596742]
[1769942230391,0.00139982,2399.6,2397.8,3.93596742]
[1769942230589,0.00139982,2399.6,2398.0,3.93596742]
[1769942231492,2.40686004,2399.6,2398.0,3.93596742]
[1769942231690,0.00139982,2399.6,2398.0,3.93596742]
[1769942232192,2.40546022,2399.2,2398.0,3.93596742]
[1769942232494,2.40546022,2399.4,2398.0,3.93596742]
[1769942232893,2.40546022,2398.9,2398.0,3.93596742]
[1769942233095,2.40546022,2399.2,2398.0,3.93596742]
[1769942233396,3.92013355,2399.6,2398.0,3.93596742]
[1769942233593,2.40546022,2398.9,2397.6,3.93596742]
[1769942233786,42.67987402,2399.6,2397.6,3.93596742]
[1769942234095,2.40546022,2399.5,2397.6,3.93596742]
[1769942234792,3.91873373,2399.5,2397.6,3.93596742]
[1769942234992,3.91873373,2398.9,2397.6,3.93596742]
[1769942235200,0.00139982,2399.6,2397.6,3.93596742]
[1769942235794,2.40546022,2399.5,2397.6,3.93596742]
[1769942235990,3.91873373,2399.4,2397.6,3.93596742]
[1769942236395,4.12735373,2399.3,2397.6,3.93596742]
[1769942236691,3.91873373,2399.0,2397.6,3.93596742]
[1769942236996,0.20862,2399.3,2397.6,3.93596742]
[1769942236997,2.40546022,2398.5,2397.6,3.93596742]
[1769942237394,3.91873373,2398.9,2397.2,11.19796742]
[1769942237592,2.40546022,2398.4,2397.3,3.93596742]
[1769942237791,3.91873373,2398.5,2397.3,3.93596742]
[1769942237992,2.40546022,2398.2,2397.3,3.93596742]
[1769942238400,3.91873373,2399.0,2397.3,3.93596742]
[1769942238588,2.40546022,2398.8,2397.3,3.93596742]
[1769942238993,2.40546022,2398.7,2397.3,3.93596742]
[1769942239199,3.91873373,2398.6,2397.3,3.93596742]
[1769942239403,3.91873373,2398.0,2396.9,0.00415991]
[1769942239701,6.32419395,2397.6,2396.9,0.00415991]
[1769942239891,6.32419395,2397.2,2396.7,2.085]
[1769942240097,2.40546022,2396.9,2396.7,2.085]
[1769942240298,2.40546022,2396.9,2395.5,2.47977541]
[1769942240299,3.91873373,2397.0,2395.2,2.47977541]
[1769942240494,3.91873373,2397.0,2394.8,2.47977541]
[1769942240799,3.91873373,2397.4,2395.4,2.47977541]
[1769942241098,3.91873373,2397.4,2395.6,2.47977541]
[1769942241301,3.91873373,2397.4,2395.7,2.086]
[1769942242406,0.00139982,2397.6,2395.9,3.93596742]
[1769942242604,0.00139982,2397.6,2396.0,6.41574283]
[1769942242792,0.00139982,2397.6,2396.2,3.93596742]
[1769942242793,3.92013355,2397.6,2396.2,3.93596742]
[1769942242999,3.92013355,2397.6,2395.7,8.50174283]
[1769942243199,4.12751373,2397.4,2395.7,2.086]
[1769942243394,4.12760373,2396.3,2394.0,6.41574283]
[1769942243599,3.91873373,2396.1,2394.1,3.93596742]
[1769942243802,3.91873373,2395.8,2393.8,3.93596742]
[1769942244301,3.91873373,2395.8,2394.8,0.02083333]
[1769942244498,3.92336837,2395.8,2394.8,0.02083333]
[1769942244998,3.92336837,2395.8,2394.8,0.02544315]
[1769942245203,6.05913126,2397.1,2394.8,0.02544315]
[1769942245204,3.91873373,2396.2,2395.3,0.02083333]
[1769942245804,3.91873373,2396.2,2395.3,0.0161987]